[Event "January 9 Early 2024"]
[Site "https://www.chess.com"]
[Date "2024.01.11"]
[Round "7"]
[White "Garakov, Mikhael"]
[Black "Hungaski, Robert"]
[Result "1-0"]
[Board "236"]
[TimeControl "180+1"]
[WhiteFideId "4169034"]
[BlackFideId "2021030"]
[WhiteElo "2666"]
[BlackElo "2460"]
[WhiteTeam "RUS"]
[BlackTeam "USA"]
[WhiteClock "0:00:05"]
[BlackClock "0:00:01"]

1. e4 {[%clk 0:03:00]}  e5 {[%clk 0:02:58]} 2. Nf3 {[%clk 0:03:00]}  Nc6 {[%clk 0:02:58]} 3. Bd3 {[%clk 0:02:59]}  Nf6 {[%clk 0:02:46]} 4. O-O {[%clk 0:02:56]}  g6 {[%clk 0:02:43]} 5. Re1 {[%clk 0:02:49]}  d6 {[%clk 0:02:40]} 6. h3 {[%clk 0:02:47]}  Bg7 {[%clk 0:02:41]} 7. c3 {[%clk 0:02:42]}  O-O {[%clk 0:02:40]} 8. Bc2 {[%clk 0:02:42]}  a5 {[%clk 0:02:41]} 9. a3 {[%clk 0:02:34]}  Qe7 {[%clk 0:02:40]} 10. d4 {[%clk 0:02:34]}  h6 {[%clk 0:02:32]} 11. Nbd2 {[%clk 0:02:33]}  Bd7 {[%clk 0:02:22]} 12. Nc4 {[%clk 0:02:15]}  b5 {[%clk 0:02:15]} 13. Ne3 {[%clk 0:02:14]}  a4 {[%clk 0:02:15]} 14. Nd5 {[%clk 0:02:01]}  Qd8 {[%clk 0:02:13]} 15. Be3 {[%clk 0:01:50]}  exd4 {[%clk 0:02:06]} 16. Nxf6+ {[%clk 0:01:37]}  Qxf6 {[%clk 0:02:07]} 17. cxd4 {[%clk 0:01:36]}  Na5 {[%clk 0:01:57]} 18. e5 {[%clk 0:01:29]}  dxe5 {[%clk 0:01:47]} 19. dxe5 {[%clk 0:01:25]}  Qe7 {[%clk 0:01:46]} 20. Be4 {[%clk 0:01:19]}  Rad8 {[%clk 0:01:43]} 21. Qe2 {[%clk 0:00:58]}  Nc4 {[%clk 0:01:38]} 22. Bd4 {[%clk 0:00:58]}  c5 {[%clk 0:01:34]} 23. Bc3 {[%clk 0:00:55]}  Be6 {[%clk 0:01:33]} 24. Rad1 {[%clk 0:00:47]}  b4 {[%clk 0:01:32]} 25. axb4 {[%clk 0:00:45]}  cxb4 {[%clk 0:01:32]} 26. Bd4 {[%clk 0:00:45]}  Rc8 {[%clk 0:01:11]} 27. Bd3 {[%clk 0:00:39]}  Rfd8 {[%clk 0:01:10]} 28. Rc1 {[%clk 0:00:38]}  Qc7 {[%clk 0:00:26]} 29. Bxc4 {[%clk 0:00:35]}  Bxc4 {[%clk 0:00:25]} 30. Qe3 {[%clk 0:00:35]}  Qc6 {[%clk 0:00:21]} 31. Nd2 {[%clk 0:00:33]}  Qd5 {[%clk 0:00:17]} 32. Nxc4 {[%clk 0:00:30]}  Rxc4 {[%clk 0:00:17]} 33. Bb6 {[%clk 0:00:26]}  Rdc8 {[%clk 0:00:16]} 34. Rcd1 {[%clk 0:00:26]}  Qe6 {[%clk 0:00:14]} 35. Rd6 {[%clk 0:00:25]}  Qe7 {[%clk 0:00:13]} 36. Qd2 {[%clk 0:00:17]}  Bxe5 {[%clk 0:00:11]} 37. Rd7 {[%clk 0:00:15]}  Qe6 {[%clk 0:00:11]} 38. Rd8+ {[%clk 0:00:15]}  Rxd8 {[%clk 0:00:11]} 39. Qxd8+ {[%clk 0:00:15]}  Kh7 {[%clk 0:00:12]} 40. Be3 {[%clk 0:00:12]}  Bg7 {[%clk 0:00:08]} 41. Qd2 {[%clk 0:00:10]}  Re4 {[%clk 0:00:08]} 42. Rc1 {[%clk 0:00:09]}  a3 {[%clk 0:00:07]} 43. bxa3 {[%clk 0:00:08]}  bxa3 {[%clk 0:00:07]} 44. Rc2 {[%clk 0:00:09]}  Bb2 {[%clk 0:00:06]} 45. Rxb2 {[%clk 0:00:09]}  axb2 {[%clk 0:00:05]} 46. Qxb2 {[%clk 0:00:10]}  Qe5 {[%clk 0:00:05]} 47. Qb7 {[%clk 0:00:09]}  Kg8 {[%clk 0:00:03]} 48. Qc8+ {[%clk 0:00:08]}  Kg7 {[%clk 0:00:03]} 49. Qd7 {[%clk 0:00:08]}  g5 {[%clk 0:00:02]} 50. Qd2 {[%clk 0:00:07]}  f6 {[%clk 0:00:02]} 51. Qc2 {[%clk 0:00:06]}  Qe7 {[%clk 0:00:01]} 52. Qc6 {[%clk 0:00:06]}  Re6 {[%clk 0:00:01]} 53. Qc4 {[%clk 0:00:06]}  Qf7 {[%clk 0:00:02]} 54. Qg4 {[%clk 0:00:05]}  Re7 {[%clk 0:00:01]} 55. h4 {[%clk 0:00:05]} 1-0

[Event "January 9 Early 2024"]
[Site "https://www.chess.com"]
[Date "2024.01.11"]
[Round "7"]
[White "Klukin, Kirill"]
[Black "Jakubowski, Krzysztof"]
[Result "1-0"]
[Board "239"]
[TimeControl "180+1"]
[WhiteFideId "24199273"]
[BlackFideId "1112848"]
[WhiteElo "2828"]
[BlackElo "2672"]
[WhiteTeam "RUS"]
[BlackTeam "POL"]
[WhiteClock "0:00:03"]
[BlackClock "0:00:01"]

1. Nf3 {[%clk 0:02:56]}  Nf6 {[%clk 0:02:58]} 2. g3 {[%clk 0:02:54]}  d5 {[%clk 0:02:57]} 3. Bg2 {[%clk 0:02:54]}  Bg4 {[%clk 0:02:56]} 4. O-O {[%clk 0:02:53]}  Nbd7 {[%clk 0:02:54]} 5. b3 {[%clk 0:02:48]}  e5 {[%clk 0:02:50]} 6. d3 {[%clk 0:02:47]}  Bd6 {[%clk 0:02:46]} 7. Bb2 {[%clk 0:02:45]}  O-O {[%clk 0:02:44]} 8. Nbd2 {[%clk 0:02:41]}  Re8 {[%clk 0:02:42]} 9. h3 {[%clk 0:02:36]}  Bxf3 {[%clk 0:02:34]} 10. Nxf3 {[%clk 0:02:34]}  a5 {[%clk 0:02:32]} 11. c4 {[%clk 0:02:30]}  d4 {[%clk 0:02:28]} 12. Nd2 {[%clk 0:02:21]}  c6 {[%clk 0:02:27]} 13. a3 {[%clk 0:02:21]}  Bf8 {[%clk 0:02:19]} 14. Rb1 {[%clk 0:02:18]}  Qc7 {[%clk 0:02:08]} 15. Bc1 {[%clk 0:02:17]}  Nc5 {[%clk 0:02:06]} 16. Qc2 {[%clk 0:01:59]}  Ra7 {[%clk 0:01:48]} 17. Nf3 {[%clk 0:01:50]}  h6 {[%clk 0:01:40]} 18. Bd2 {[%clk 0:01:49]}  Ncd7 {[%clk 0:01:25]} 19. b4 {[%clk 0:01:47]}  axb4 {[%clk 0:01:25]} 20. axb4 {[%clk 0:01:47]}  Rea8 {[%clk 0:01:25]} 21. Rb2 {[%clk 0:01:42]}  Ra3 {[%clk 0:01:08]} 22. Rfb1 {[%clk 0:01:40]}  Qd8 {[%clk 0:01:01]} 23. Ne1 {[%clk 0:01:26]}  Qb8 {[%clk 0:00:55]} 24. Qd1 {[%clk 0:01:24]}  Nb6 {[%clk 0:00:52]} 25. Nc2 {[%clk 0:01:22]}  R3a7 {[%clk 0:00:49]} 26. e3 {[%clk 0:01:18]}  Na4 {[%clk 0:00:46]} 27. Rb3 {[%clk 0:01:17]}  Qd8 {[%clk 0:00:36]} 28. exd4 {[%clk 0:01:11]}  exd4 {[%clk 0:00:37]} 29. Ra1 {[%clk 0:00:46]}  Ne8 {[%clk 0:00:28]} 30. Rba3 {[%clk 0:00:38]}  Nc7 {[%clk 0:00:28]} 31. Nxd4 {[%clk 0:00:27]}  Nb2 {[%clk 0:00:24]} 32. Qb3 {[%clk 0:00:12]}  Rxa3 {[%clk 0:00:23]} 33. Rxa3 {[%clk 0:00:12]}  Rxa3 {[%clk 0:00:21]} 34. Qxa3 {[%clk 0:00:12]}  Qxd4 {[%clk 0:00:21]} 35. Bc3 {[%clk 0:00:13]}  Qxd3 {[%clk 0:00:20]} 36. Qxb2 {[%clk 0:00:14]}  Qxc4 {[%clk 0:00:20]} 37. Bf1 {[%clk 0:00:14]}  Qe4 {[%clk 0:00:18]} 38. Bg2 {[%clk 0:00:14]}  Qd3 {[%clk 0:00:17]} 39. Be5 {[%clk 0:00:11]}  Nd5 {[%clk 0:00:15]} 40. b5 {[%clk 0:00:11]}  Qd1+ {[%clk 0:00:10]} 41. Kh2 {[%clk 0:00:11]}  Qe1 {[%clk 0:00:10]} 42. bxc6 {[%clk 0:00:09]}  bxc6 {[%clk 0:00:11]} 43. Bd4 {[%clk 0:00:09]}  Qe6 {[%clk 0:00:09]} 44. Qc2 {[%clk 0:00:09]}  h5 {[%clk 0:00:08]} 45. h4 {[%clk 0:00:08]}  Bd6 {[%clk 0:00:07]} 46. Kg1 {[%clk 0:00:05]}  Ne7 {[%clk 0:00:05]} 47. Bc3 {[%clk 0:00:03]}  Be5 {[%clk 0:00:04]} 48. Bd2 {[%clk 0:00:02]}  Bf6 {[%clk 0:00:03]} 49. Bf4 {[%clk 0:00:02]}  g6 {[%clk 0:00:03]} 50. Kh2 {[%clk 0:00:03]}  Kg7 {[%clk 0:00:03]} 51. Be3 {[%clk 0:00:03]}  Qd6 {[%clk 0:00:03]} 52. Qb3 {[%clk 0:00:03]}  Nd5 {[%clk 0:00:03]} 53. Bc1 {[%clk 0:00:03]}  Bxh4 {[%clk 0:00:02]} 54. Bb2+ {[%clk 0:00:03]}  Bf6 {[%clk 0:00:02]} 55. Bc1 {[%clk 0:00:04]}  Qe6 {[%clk 0:00:02]} 56. Qc2 {[%clk 0:00:05]}  h4 {[%clk 0:00:02]} 57. gxh4 {[%clk 0:00:05]}  Qe5+ {[%clk 0:00:02]} 58. Kh3 {[%clk 0:00:03]}  Qh5 {[%clk 0:00:02]} 59. Qe4 {[%clk 0:00:03]}  Ba1 {[%clk 0:00:01]} 60. Bf3 {[%clk 0:00:03]}  Qe5 {[%clk 0:00:01]} 61. Qg4 {[%clk 0:00:03]} 1-0

[Event "January 9 Early 2024"]
[Site "https://www.chess.com"]
[Date "2024.01.11"]
[Round "7"]
[White "Cieslak, Patryk"]
[Black "Sethuraman, S.P."]
[Result "0-1"]
[Board "241"]
[TimeControl "180+1"]
[WhiteFideId "21078882"]
[BlackFideId "5021596"]
[WhiteElo "2693"]
[BlackElo "2879"]
[WhiteTeam "POL"]
[BlackTeam "IND"]
[WhiteClock "0:00:08"]
[BlackClock "0:00:08"]

1. e4 {[%clk 0:03:00]}  c5 {[%clk 0:02:59]} 2. Nf3 {[%clk 0:03:01]}  d6 {[%clk 0:03:00]} 3. d4 {[%clk 0:03:01]}  cxd4 {[%clk 0:03:01]} 4. Nxd4 {[%clk 0:03:02]}  Nf6 {[%clk 0:03:01]} 5. Nc3 {[%clk 0:03:02]}  a6 {[%clk 0:03:02]} 6. Bc4 {[%clk 0:02:59]}  e6 {[%clk 0:03:02]} 7. Be3 {[%clk 0:02:55]}  Be7 {[%clk 0:03:00]} 8. Bb3 {[%clk 0:02:54]}  b5 {[%clk 0:02:58]} 9. Qf3 {[%clk 0:02:53]}  Bb7 {[%clk 0:02:57]} 10. Bxe6 {[%clk 0:02:48]}  fxe6 {[%clk 0:02:47]} 11. Nxe6 {[%clk 0:02:49]}  Qd7 {[%clk 0:02:36]} 12. Nxg7+ {[%clk 0:02:48]}  Kf7 {[%clk 0:02:37]} 13. Nf5 {[%clk 0:02:42]}  Nc6 {[%clk 0:02:35]} 14. O-O-O {[%clk 0:02:20]}  Ne5 {[%clk 0:02:34]} 15. Qf4 {[%clk 0:02:11]}  Qe6 {[%clk 0:02:33]} 16. Nxe7 {[%clk 0:01:20]}  Kxe7 {[%clk 0:02:29]} 17. f3 {[%clk 0:01:00]}  Rac8 {[%clk 0:02:25]} 18. Qh4 {[%clk 0:00:57]}  Kf7 {[%clk 0:02:07]} 19. Bd4 {[%clk 0:00:41]}  b4 {[%clk 0:02:05]} 20. Bxe5 {[%clk 0:00:37]}  dxe5 {[%clk 0:01:33]} 21. Nd5 {[%clk 0:00:34]}  Bxd5 {[%clk 0:01:28]} 22. exd5 {[%clk 0:00:33]}  Qf5 {[%clk 0:01:28]} 23. Rd2 {[%clk 0:00:27]}  a5 {[%clk 0:01:28]} 24. d6 {[%clk 0:00:26]}  Rhd8 {[%clk 0:01:26]} 25. Qf2 {[%clk 0:00:19]}  Rd7 {[%clk 0:01:19]} 26. Rhd1 {[%clk 0:00:19]}  a4 {[%clk 0:01:15]} 27. g4 {[%clk 0:00:15]}  Qf4 {[%clk 0:01:12]} 28. Qg3 {[%clk 0:00:15]}  Qxg3 {[%clk 0:01:05]} 29. hxg3 {[%clk 0:00:16]}  b3 {[%clk 0:01:03]} 30. Kb1 {[%clk 0:00:12]}  bxc2+ {[%clk 0:00:58]} 31. Rxc2 {[%clk 0:00:13]}  Rxc2 {[%clk 0:00:59]} 32. Kxc2 {[%clk 0:00:14]}  Ke6 {[%clk 0:00:59]} 33. Rh1 {[%clk 0:00:14]}  e4 {[%clk 0:00:30]} 34. g5 {[%clk 0:00:10]}  Ne8 {[%clk 0:00:28]} 35. Rh6+ {[%clk 0:00:08]}  Ke5 {[%clk 0:00:27]} 36. fxe4 {[%clk 0:00:07]}  Nxd6 {[%clk 0:00:27]} 37. b3 {[%clk 0:00:04]}  a3 {[%clk 0:00:25]} 38. b4 {[%clk 0:00:04]}  Nxe4 {[%clk 0:00:24]} 39. g6 {[%clk 0:00:04]}  hxg6 {[%clk 0:00:19]} 40. Rxg6 {[%clk 0:00:05]}  Rd2+ {[%clk 0:00:17]} 41. Kb3 {[%clk 0:00:05]}  Rd3+ {[%clk 0:00:18]} 42. Ka4 {[%clk 0:00:02]}  Nd2 {[%clk 0:00:18]} 43. Rg8 {[%clk 0:00:01]}  Nc4 {[%clk 0:00:17]} 44. Re8+ {[%clk 0:00:02]}  Kf5 {[%clk 0:00:17]} 45. b5 {[%clk 0:00:01]}  Nb2+ {[%clk 0:00:16]} 46. Kb4 {[%clk 0:00:01]}  Rd4+ {[%clk 0:00:08]} 47. Kc5 {[%clk 0:00:02]}  Rc4+ {[%clk 0:00:08]} 48. Kd5 {[%clk 0:00:03]}  Rb4 {[%clk 0:00:07]} 49. Kc6 {[%clk 0:00:03]}  Nc4 {[%clk 0:00:06]} 50. Kc5 {[%clk 0:00:03]}  Ra4 {[%clk 0:00:04]} 51. Re2 {[%clk 0:00:04]}  Nb2 {[%clk 0:00:03]} 52. Rc2 {[%clk 0:00:04]}  Nd3+ {[%clk 0:00:04]} 53. Kc6 {[%clk 0:00:03]}  Nb4+ {[%clk 0:00:04]} 54. Kc5 {[%clk 0:00:04]}  Nxc2 {[%clk 0:00:05]} 55. b6 {[%clk 0:00:04]}  Rb4 {[%clk 0:00:06]} 56. b7 {[%clk 0:00:04]}  Rxb7 {[%clk 0:00:06]} 57. Kc4 {[%clk 0:00:05]}  Rb2 {[%clk 0:00:06]} 58. Kc3 {[%clk 0:00:06]}  Rxa2 {[%clk 0:00:07]} 59. Kb3 {[%clk 0:00:07]}  Rb2+ {[%clk 0:00:08]} 60. Kc3 {[%clk 0:00:08]}  Kg4 {[%clk 0:00:08]} 0-1

[Event "January 9 Early 2024"]
[Site "https://www.chess.com"]
[Date "2024.01.11"]
[Round "7"]
[White "Chu, Wei Chao"]
[Black "Hambleton, Aman"]
[Result "1-0"]
[Board "243"]
[TimeControl "180+1"]
[WhiteFideId "8605661"]
[BlackFideId "2606577"]
[WhiteElo "2624"]
[BlackElo "2755"]
[WhiteTeam "CHN"]
[BlackTeam "CAN"]
[WhiteClock "0:00:05"]
[BlackClock "0:00:02"]

1. d4 {[%clk 0:02:59]}  e5 {[%clk 0:02:59]} 2. dxe5 {[%clk 0:02:57]}  Nc6 {[%clk 0:02:59]} 3. Nf3 {[%clk 0:02:55]}  Qe7 {[%clk 0:02:59]} 4. Nc3 {[%clk 0:02:37]}  Nxe5 {[%clk 0:02:59]} 5. Nd5 {[%clk 0:02:27]}  Nxf3+ {[%clk 0:02:57]} 6. gxf3 {[%clk 0:02:28]}  Qd8 {[%clk 0:02:58]} 7. e4 {[%clk 0:02:27]}  d6 {[%clk 0:02:58]} 8. Be3 {[%clk 0:02:26]}  Nf6 {[%clk 0:02:56]} 9. Bc4 {[%clk 0:02:22]}  c6 {[%clk 0:02:38]} 10. Nxf6+ {[%clk 0:02:15]}  Qxf6 {[%clk 0:02:39]} 11. Bd4 {[%clk 0:02:13]}  Qf4 {[%clk 0:02:35]} 12. Qe2 {[%clk 0:02:12]}  Be6 {[%clk 0:02:31]} 13. Bb3 {[%clk 0:02:00]}  h5 {[%clk 0:01:39]} 14. h4 {[%clk 0:01:59]}  Rg8 {[%clk 0:01:32]} 15. Be3 {[%clk 0:01:56]}  Qe5 {[%clk 0:01:28]} 16. O-O-O {[%clk 0:01:55]}  Bxb3 {[%clk 0:01:16]} 17. axb3 {[%clk 0:01:56]}  Be7 {[%clk 0:01:17]} 18. Kb1 {[%clk 0:01:50]}  a6 {[%clk 0:01:01]} 19. Rd4 {[%clk 0:01:21]}  O-O-O {[%clk 0:00:56]} 20. f4 {[%clk 0:01:21]}  Qb5 {[%clk 0:00:44]} 21. Qd2 {[%clk 0:01:19]}  d5 {[%clk 0:00:25]} 22. e5 {[%clk 0:00:52]}  g6 {[%clk 0:00:07]} 23. Rd1 {[%clk 0:00:48]}  Rge8 {[%clk 0:00:02]} 24. f3 {[%clk 0:00:34]}  Bc5 {[%clk 0:00:02]} 25. Rd3 {[%clk 0:00:31]}  Bb4 {[%clk 0:00:02]} 26. Qf2 {[%clk 0:00:27]}  Be7 {[%clk 0:00:02]} 27. Qg3 {[%clk 0:00:18]}  Kb8 {[%clk 0:00:01]} 28. f5 {[%clk 0:00:18]}  Ka8 {[%clk 0:00:01]} 29. fxg6 {[%clk 0:00:16]}  fxg6 {[%clk 0:00:02]} 30. Qxg6 {[%clk 0:00:17]}  Bxh4 {[%clk 0:00:02]} 31. f4 {[%clk 0:00:17]}  Rg8 {[%clk 0:00:01]} 32. Qxh5 {[%clk 0:00:17]}  Rh8 {[%clk 0:00:02]} 33. Qg4 {[%clk 0:00:15]}  Rdg8 {[%clk 0:00:02]} 34. Qd7 {[%clk 0:00:15]}  Rd8 {[%clk 0:00:01]} 35. Qg4 {[%clk 0:00:15]}  Rdg8 {[%clk 0:00:02]} 36. Qf3 {[%clk 0:00:15]}  Be7 {[%clk 0:00:02]} 37. f5 {[%clk 0:00:15]}  Rf8 {[%clk 0:00:02]} 38. f6 {[%clk 0:00:15]}  Bd8 {[%clk 0:00:02]} 39. Bg5 {[%clk 0:00:13]}  Rhg8 {[%clk 0:00:02]} 40. Qf5 {[%clk 0:00:13]}  Qc5 {[%clk 0:00:02]} 41. Rf1 {[%clk 0:00:12]}  a5 {[%clk 0:00:02]} 42. e6 {[%clk 0:00:11]}  Qd6 {[%clk 0:00:02]} 43. Re3 {[%clk 0:00:05]}  Bb6 {[%clk 0:00:01]} 44. Re2 {[%clk 0:00:04]}  a4 {[%clk 0:00:01]} 45. bxa4 {[%clk 0:00:04]}  Qb4 {[%clk 0:00:02]} 46. e7 {[%clk 0:00:04]}  Bd4 {[%clk 0:00:02]} 47. c3 {[%clk 0:00:03]}  Bxc3 {[%clk 0:00:02]} 48. exf8=Q+ {[%clk 0:00:04]}  Rxf8 {[%clk 0:00:03]} 49. f7 {[%clk 0:00:03]}  Qc4 {[%clk 0:00:02]} 50. Qc2 {[%clk 0:00:03]}  Bb4 {[%clk 0:00:01]} 51. Qxc4 {[%clk 0:00:03]}  dxc4 {[%clk 0:00:02]} 52. Re8+ {[%clk 0:00:04]}  Ka7 {[%clk 0:00:02]} 53. Rxf8 {[%clk 0:00:04]}  Bxf8 {[%clk 0:00:03]} 54. Re1 {[%clk 0:00:05]}  Bb4 {[%clk 0:00:03]} 55. Re8 {[%clk 0:00:05]}  Ka6 {[%clk 0:00:03]} 56. Be3 {[%clk 0:00:05]}  b6 {[%clk 0:00:03]} 57. f8=Q {[%clk 0:00:05]}  Bxf8 {[%clk 0:00:03]} 58. Rxf8 {[%clk 0:00:06]}  Ka5 {[%clk 0:00:04]} 59. Rf6 {[%clk 0:00:07]}  c5 {[%clk 0:00:03]} 60. Re6 {[%clk 0:00:05]}  Kxa4 {[%clk 0:00:02]} 61. Rxb6 {[%clk 0:00:05]}  c3 {[%clk 0:00:02]} 62. bxc3 {[%clk 0:00:05]}  Ka3 {[%clk 0:00:01]} 63. Bxc5+ {[%clk 0:00:05]}  Ka4 {[%clk 0:00:02]} 64. Rb8 {[%clk 0:00:05]}  Ka5 {[%clk 0:00:02]} 65. Be3 {[%clk 0:00:05]} 1-0

[Event "January 9 Early 2024"]
[Site "https://www.chess.com"]
[Date "2024.01.11"]
[Round "7"]
[White "Ozer, Omer Faruk"]
[Black "Kochiev, Ivan"]
[Result "1-0"]
[Board "245"]
[TimeControl "180+1"]
[WhiteFideId "6354564"]
[BlackFideId "2917890"]
[WhiteElo "2765"]
[BlackElo "2578"]
[WhiteTeam "TUR"]
[BlackTeam "BUL"]
[WhiteClock "0:00:03"]
[BlackClock "0:00:03"]

1. d4 {[%clk 0:03:00]}  Nf6 {[%clk 0:02:59]} 2. Nf3 {[%clk 0:03:01]}  e6 {[%clk 0:03:00]} 3. Bg5 {[%clk 0:03:01]}  c5 {[%clk 0:03:00]} 4. e3 {[%clk 0:03:01]}  d5 {[%clk 0:02:59]} 5. Nbd2 {[%clk 0:03:00]}  Nbd7 {[%clk 0:02:55]} 6. c3 {[%clk 0:03:00]}  Bd6 {[%clk 0:02:54]} 7. Bd3 {[%clk 0:03:00]}  e5 {[%clk 0:02:52]} 8. dxe5 {[%clk 0:02:50]}  Nxe5 {[%clk 0:02:52]} 9. Nxe5 {[%clk 0:02:50]}  Bxe5 {[%clk 0:02:53]} 10. Nf3 {[%clk 0:02:37]}  Bc7 {[%clk 0:02:48]} 11. O-O {[%clk 0:02:35]}  O-O {[%clk 0:02:46]} 12. Bc2 {[%clk 0:02:20]}  Be6 {[%clk 0:02:36]} 13. Qd3 {[%clk 0:02:18]}  g6 {[%clk 0:02:33]} 14. Qb5 {[%clk 0:02:10]}  b6 {[%clk 0:02:21]} 15. Qa4 {[%clk 0:02:09]}  Kg7 {[%clk 0:02:11]} 16. Qh4 {[%clk 0:02:07]}  h5 {[%clk 0:02:10]} 17. Rad1 {[%clk 0:02:00]}  Qe7 {[%clk 0:02:07]} 18. Ne1 {[%clk 0:01:38]}  Bd8 {[%clk 0:01:52]} 19. Nd3 {[%clk 0:01:33]}  Qd7 {[%clk 0:01:44]} 20. Nf4 {[%clk 0:01:30]}  Bf5 {[%clk 0:01:38]} 21. Bb3 {[%clk 0:01:04]}  Be6 {[%clk 0:01:37]} 22. Bxf6+ {[%clk 0:00:33]}  Bxf6 {[%clk 0:01:36]} 23. Qg3 {[%clk 0:00:34]}  Bg4 {[%clk 0:00:35]} 24. Rxd5 {[%clk 0:00:32]}  h4 {[%clk 0:00:27]} 25. Rxd7 {[%clk 0:00:22]}  hxg3 {[%clk 0:00:26]} 26. Rb7 {[%clk 0:00:17]}  gxf2+ {[%clk 0:00:11]} 27. Rxf2 {[%clk 0:00:16]}  Rad8 {[%clk 0:00:11]} 28. h3 {[%clk 0:00:13]}  Bc8 {[%clk 0:00:11]} 29. Rxa7 {[%clk 0:00:13]}  Rde8 {[%clk 0:00:07]} 30. Nd5 {[%clk 0:00:13]}  Bg5 {[%clk 0:00:06]} 31. Kh2 {[%clk 0:00:10]}  Be6 {[%clk 0:00:06]} 32. Nc7 {[%clk 0:00:09]}  Bxe3 {[%clk 0:00:06]} 33. Nxe6+ {[%clk 0:00:09]}  Rxe6 {[%clk 0:00:06]} 34. Bxe6 {[%clk 0:00:07]}  Bxf2 {[%clk 0:00:07]} 35. Bd5 {[%clk 0:00:08]}  Be3 {[%clk 0:00:06]} 36. c4 {[%clk 0:00:07]}  Bd4 {[%clk 0:00:06]} 37. b3 {[%clk 0:00:07]}  g5 {[%clk 0:00:07]} 38. Rb7 {[%clk 0:00:07]}  Kg6 {[%clk 0:00:05]} 39. Rxb6+ {[%clk 0:00:07]}  f6 {[%clk 0:00:06]} 40. g4 {[%clk 0:00:07]}  Re8 {[%clk 0:00:06]} 41. Rb7 {[%clk 0:00:07]}  Re2+ {[%clk 0:00:07]} 42. Kg3 {[%clk 0:00:07]}  Re3+ {[%clk 0:00:04]} 43. Kg2 {[%clk 0:00:08]}  Re2+ {[%clk 0:00:04]} 44. Kg3 {[%clk 0:00:08]}  Rxa2 {[%clk 0:00:05]} 45. Bf7+ {[%clk 0:00:06]}  Kg7 {[%clk 0:00:05]} 46. Be6+ {[%clk 0:00:06]}  Kf8 {[%clk 0:00:05]} 47. Kf3 {[%clk 0:00:06]}  Rh2 {[%clk 0:00:04]} 48. Ke4 {[%clk 0:00:06]}  Rxh3 {[%clk 0:00:04]} 49. Kf5 {[%clk 0:00:07]}  Re3 {[%clk 0:00:04]} 50. Bd5 {[%clk 0:00:06]}  Re5+ {[%clk 0:00:04]} 51. Kg6 {[%clk 0:00:06]}  Re7 {[%clk 0:00:03]} 52. Rb8+ {[%clk 0:00:06]}  Re8 {[%clk 0:00:04]} 53. Rb6 {[%clk 0:00:06]}  Re7 {[%clk 0:00:04]} 54. Ra6 {[%clk 0:00:04]}  Rg7+ {[%clk 0:00:05]} 55. Kf5 {[%clk 0:00:04]}  Re7 {[%clk 0:00:05]} 56. Ra8+ {[%clk 0:00:04]}  Re8 {[%clk 0:00:06]} 57. Ra7 {[%clk 0:00:04]}  Re5+ {[%clk 0:00:05]} 58. Kg6 {[%clk 0:00:04]}  Re7 {[%clk 0:00:06]} 59. Ra2 {[%clk 0:00:03]}  Re3 {[%clk 0:00:06]} 60. Rh2 {[%clk 0:00:03]}  Rxb3 {[%clk 0:00:05]} 61. Rh7 {[%clk 0:00:03]}  Rg3 {[%clk 0:00:04]} 62. Be6 {[%clk 0:00:02]}  Re3 {[%clk 0:00:04]} 63. Bd7 {[%clk 0:00:02]}  Re5 {[%clk 0:00:02]} 64. Rf7+ {[%clk 0:00:02]}  Kg8 {[%clk 0:00:02]} 65. Rxf6 {[%clk 0:00:02]}  Re7 {[%clk 0:00:02]} 66. Be6+ {[%clk 0:00:02]}  Rxe6 {[%clk 0:00:03]} 67. Rxe6 {[%clk 0:00:02]}  Kf8 {[%clk 0:00:03]} 68. Kxg5 {[%clk 0:00:03]}  Kf7 {[%clk 0:00:03]} 69. Kf5 {[%clk 0:00:03]} 1-0